bitfinex/quotes_SOLUSD_20260214
["timestamp","ask_amount","ask_price","bid_price","bid_amount"]
[1771081711328,2.93404978,87.43,87.403,0.5]
[1771081712042,19.32,87.429,87.404,11.44112397]
[1771081712345,19.32,87.429,87.404,11.94112397]
[1771081713236,19.32,87.429,87.405,0.5]
[1771081713440,7.33376866,87.42,87.405,0.5]
[1771081713761,63.87376866,87.42,87.397,65.51276645]
[1771081714429,7.33376866,87.41,87.397,5.14300644]
[1771081714628,56.54,87.409,87.397,5.14300644]
[1771081715141,7.33376866,87.42,87.398,0.5]
[1771081715446,56.56,87.425,87.399,0.5]
[1771081717534,11.43850658,87.424,87.399,0.5]
[1771081718031,7.33376866,87.42,87.397,5.14300644]
[1771081718337,56.58,87.419,87.397,5.14300644]
[1771081718532,7.33376866,87.42,87.397,5.14300644]
[1771081718739,56.58,87.419,87.397,5.14300644]
[1771081719349,7.33376866,87.41,87.397,5.14300644]
[1771081719545,11.43929167,87.418,87.397,5.14300644]
[1771081721155,7.33376866,87.41,87.365,0.5]
[1771081721354,7.33376866,87.4,87.365,0.5]
[1771081721543,56.6,87.399,87.365,0.5]
[1771081721754,11.44190942,87.398,87.366,0.5]
[1771081722446,56.6,87.397,87.366,0.5]
[1771081723239,35.93155591,87.42,87.371,0.5]
[1771081723443,68.05916082,87.419,87.381,0.5]
[1771081723646,56.62,87.418,87.381,0.5]
[1771081724657,11.43942253,87.417,87.383,0.5]
[1771081725761,11.43942253,87.417,87.384,11.44374256]
[1771081725968,11.43942253,87.417,87.385,0.5]
[1771081726862,11.43942253,87.417,87.387,0.5]
[1771081730255,56.64,87.416,87.389,0.5]
[1771081731663,11.43968426,87.415,87.389,0.5]
[1771081733762,11.43968426,87.415,87.382,11.44398611]
[1771081733961,11.43968426,87.415,87.383,0.5]
[1771081735858,56.64,87.416,87.385,0.5]
[1771081736276,11.43968426,87.415,87.385,0.5]
[1771081736471,56.68,87.414,87.385,0.5]
[1771081737175,2.93439391,87.41,87.385,0.5]
[1771081738101,11.43968426,87.415,87.387,0.5]
[1771081738267,56.68,87.414,87.391,0.5]
[1771081738578,55.18,87.413,87.387,0.47627911]
[1771081738876,56.7,87.412,87.386,40.05218226]
[1771081739172,56.68,87.424,87.386,40.05218226]
[1771081739786,0.5,87.423,87.386,40.05218226]
[1771081740259,0.5,87.423,87.386,28.60870162]
[1771081740458,56.66,87.427,87.39,2.93439391]
[1771081740968,56.66,87.427,87.386,28.60870162]
[1771081740969,0.5,87.439,87.4,2.93439391]
[1771081741155,57.16,87.438,87.4,2.93439391]
[1771081741350,0.5,87.445,87.4,2.93439391]
[1771081741551,0.5,87.444,87.4,2.93439391]
[1771081742494,0.5,87.444,87.392,60.36]
[1771081742495,0.5,87.439,87.396,11.44217126]
[1771081742785,0.5,87.429,87.396,11.44217126]
[1771081744580,0.5,87.429,87.392,4.61729252]
[1771081745780,0.5,87.429,87.393,40.04897416]
[1771081747291,56.64,87.436,87.393,28.60641012]
[1771081747292,0.5,87.427,87.393,28.60641012]
[1771081749898,0.5,87.434,87.393,28.60641012]
[1771081751485,0.5,87.432,87.393,28.60641012]
[1771081752695,0.5,87.432,87.394,61.9]
[1771081754094,0.5,87.43,87.395,11.44230219]
[1771081754392,0.5,87.429,87.395,11.44230219]
[1771081755692,2.93439391,87.41,87.378,11.44452837]
[1771081756286,2.93439391,87.41,87.374,11.91426453]
[1771081756484,11.44046951,87.409,87.374,11.91426453]
[1771081757602,0.49377024,87.408,87.374,11.91426453]
[1771081757897,0.49377024,87.389,87.35,11.91731394]
[1771081758213,0.49377024,87.379,87.35,11.44810171]
[1771081758875,2.93439391,87.38,87.342,28.6230448]
[1771081758876,0.49377024,87.377,87.346,0.46921223]
[1771081759489,11.44452837,87.378,87.331,28.62669851]
[1771081759490,0.49377024,87.369,87.339,11.44960126]
[1771081760084,2.93677683,87.35,87.323,0.46921223]
[1771081760285,0.49377024,87.349,87.323,0.46921223]
[1771081760695,0.49377024,87.349,87.32,60.5]
[1771081760900,0.49377024,87.347,87.316,0.46921223]
[1771081761497,0.49377024,87.347,87.319,11.45215569]
[1771081762291,0.49377024,87.347,87.323,11.451715]
[1771081762600,0.49377024,87.347,87.31,0.2]
[1771081762994,0.49377024,87.345,87.311,11.45327745]
[1771081763201,0.49377024,87.339,87.311,11.45327745]
[1771081763778,0.49377024,87.339,87.325,7.14595696]
[1771081764503,0.49377024,87.339,87.325,6.14595696]
[1771081764796,0.49377024,87.339,87.31,0.2]
[1771081765005,7.34694546,87.33,87.31,0.2]
[1771081765387,7.34694546,87.32,87.3,0.2]
[1771081766805,7.34694546,87.31,87.3,1e-08]
[1771081767182,0.02159155,87.352,87.301,0.5]
[1771081767399,7.34694546,87.34,87.301,0.5]
[1771081768398,11.44963876,87.339,87.303,0.5]
[1771081769388,7.34694546,87.32,87.3,1e-08]
[1771081770021,0.06261154,87.329,87.3,1e-08]
[1771081770185,40.07373566,87.339,87.273,0.5]
[1771081770186,7.34694546,87.31,87.273,0.5]
[1771081770384,7.34694546,87.3,87.273,0.5]
[1771081770804,11.5576228,87.299,87.273,0.5]
[1771081772094,11.45368494,87.309,87.271,0.53958848]
[1771081773009,11.45368494,87.309,87.273,0.53958848]
[1771081774210,11.45368494,87.309,87.275,0.53958848]
[1771081774894,0.18549466,87.308,87.275,0.53958848]
[1771081775093,0.18549466,87.299,87.268,0.53958848]
[1771081775300,7.34694546,87.29,87.257,0.53958848]
[1771081775499,0.18549466,87.289,87.257,0.53958848]
[1771081776023,0.18549466,87.289,87.24,36.20335152]
[1771081776024,0.20148384,87.279,87.246,0.53958848]
[1771081776210,0.20148384,87.279,87.24,0.2]
[1771081776211,11.4576411,87.278,87.253,0.53958848]
[1771081778409,11.45695811,87.284,87.259,0.53958848]
[1771081778595,7.34694546,87.28,87.259,0.53958848]
[1771081779115,7.34694546,87.28,87.253,0.53958848]
[1771081780408,7.34694546,87.29,87.257,0.53958848]
[1771081781509,11.45621953,87.289,87.257,11.46039859]
[1771081781701,11.45621953,87.289,87.258,0.58437948]
[1771081783911,0.33737778,87.288,87.245,0.58437948]
[1771081784104,7.68432324,87.27,87.245,0.58437948]
[1771081785013,11.45882272,87.269,87.245,0.58437948]
[1771081785201,7.34694546,87.26,87.24,0.2]
[1771081785820,56.5,87.266,87.241,0.66868994]
[1771081786113,11.45882272,87.269,87.241,0.66868994]
[1771081786715,7.34694546,87.26,87.241,0.66868994]
[1771081786915,11.45882272,87.269,87.242,0.66868994]
[1771081787309,67.97882272,87.269,87.242,0.66868994]
[1771081788299,7.34694546,87.26,87.242,0.66868994]
[1771081790227,11.45934555,87.266,87.242,0.66868994]
[1771081792328,68.01934555,87.266,87.242,0.66868994]
[1771081792823,11.45934555,87.266,87.242,0.66868994]
[1771081793010,56.58,87.266,87.243,0.66868994]
[1771081793206,2.94425059,87.27,87.243,0.66868994]
[1771081793527,0.12474574,87.299,87.251,0.66868994]
[1771081794534,11.57963067,87.299,87.253,0.66868994]
[1771081794721,0.15075515,87.298,87.253,0.66868994]
[1771081795221,63.85287174,87.554,87.291,0.66868994]
[1771081795517,0.29795178,87.324,87.3,2.94425059]
[1771081795724,0.7440663,87.322,87.29,2.94425059]
[1771081796028,0.7440663,87.322,87.28,2.94425059]
[1771081796321,0.7440663,87.322,87.213,45.8642892]
[1771081796322,0.7440663,87.319,87.27,2.94425059]
[1771081796730,0.7440663,87.309,87.271,11.45856011]
[1771081798513,0.7440663,87.309,87.271,11.50287909]
[1771081798820,0.7440663,87.309,87.272,0.04431898]
[1771081799222,0.7440663,87.331,87.281,0.05875071]
[1771081799419,0.7440663,87.327,87.291,0.05875071]
[1771081799623,0.7440663,87.327,87.29,7.11175055]
[1771081800321,0.7440663,87.327,87.262,28.64922906]
[1771081800322,0.77344165,87.299,87.262,28.64922906]
[1771081800510,0.77344165,87.299,87.265,4.61729252]
[1771081800708,0.77344165,87.299,87.262,28.64922906]
[1771081801007,0.77344165,87.299,87.265,4.61729252]
[1771081801404,0.77344165,87.309,87.265,4.61729252]
[1771081801812,7.35299984,87.3,87.261,11.45987325]
[1771081802037,0.77344165,87.299,87.261,11.45987325]
[1771081803407,0.77344165,87.298,87.261,11.45987325]
[1771081803825,0.77344165,87.298,87.27,7.35299984]
[1771081804228,0.77344165,87.298,87.28,7.35299984]
[1771081805621,0.77344165,87.306,87.28,7.35299984]
[1771081806612,0.77344165,87.306,87.28,18.8103225]
[1771081806815,0.77344165,87.306,87.28,7.35299984]
[1771081808429,0.77344165,87.304,87.28,7.35299984]
[1771081808606,0.77344165,87.304,87.281,11.45724728]
[1771081808803,0.77344165,87.304,87.28,7.35299984]
[1771081809426,0.77344165,87.304,87.27,18.81163092]
[1771081810210,0.77344165,87.304,87.28,7.35299984]
[1771081810410,0.77344165,87.304,87.281,11.45724728]
[1771081812127,0.77344165,87.302,87.28,7.35299984]
[1771081812333,0.77344165,87.302,87.27,7.35299984]
[1771081815335,0.77344165,87.3,87.27,7.35299984]
[1771081815834,0.77344165,87.299,87.25,7.35299984]
[1771081816009,0.77344165,87.299,87.26,7.35299984]
[1771081816904,11.45501615,87.298,87.26,18.81295458]
[1771081817124,0.77344165,87.296,87.26,18.81295458]
[1771081818935,0.77344165,87.294,87.26,2.94209744]
[1771081821135,0.77344165,87.292,87.261,11.45987325]
[1771081823846,0.77344165,87.289,87.251,11.46118669]
[1771081824339,0.77344165,87.289,87.241,11.46250042]
[1771081825115,0.77344165,87.279,87.241,11.46250042]
[1771081827542,0.77344165,87.277,87.241,11.46250042]
[1771081829634,11.45790366,87.276,87.241,11.46250042]
[1771081829933,56.58,87.293,87.26,2.94212042]
[1771081829934,0.77344165,87.293,87.26,2.94212042]
[1771081830135,0.77344165,87.31,87.27,2.94212042]
[1771081830440,0.77344165,87.309,87.27,2.94212042]
[1771081831520,0.77344165,87.299,87.26,2.94212042]
[1771081831743,0.77344165,87.299,87.245,61.9]
[1771081831744,0.77344165,87.287,87.251,11.46118669]
[1771081832143,0.77344165,87.279,87.241,11.46250042]
[1771081834440,0.77344165,87.277,87.241,11.46250042]
[1771081836044,0.77344165,87.269,87.241,11.46250042]
[1771081836547,0.77344165,87.267,87.241,11.46250042]
[1771081837533,0.77344165,87.267,87.24,0.2]
[1771081838547,0.77344165,87.267,87.24,11.66253986]
[1771081839347,0.77344165,87.265,87.24,11.66253986]
[1771081846255,0.77344165,87.273,87.24,40.31911941]
[1771081846430,0.77344165,87.282,87.25,2.94212042]
[1771081846639,0.77344165,87.282,87.24,43.26123983]
[1771081847347,2.94212042,87.28,87.24,43.26123983]
[1771081847548,0.77344165,87.279,87.241,59.98]
[1771081847744,2.94212042,87.27,87.24,11.66253986]
[1771081847949,0.77344165,87.269,87.24,11.66253986]
[1771081848342,0.77344165,87.267,87.24,11.66253986]
[1771081849934,0.77344165,87.267,87.24,0.2]
[1771081850452,0.67344165,87.257,87.23,11.46386321]
[1771081850853,0.67344165,87.257,87.22,0.2]
[1771081850854,2.94212042,87.24,87.22,0.2]
[1771081851035,0.67344165,87.239,87.22,0.2]
[1771081852757,0.67344165,87.239,87.221,11.46512881]
[1771081854041,0.67344165,87.237,87.22,0.2]
[1771081855060,0.67344165,87.235,87.22,0.2]
[1771081857764,0.67344165,87.233,87.22,0.2]
[1771081860064,0.60799231,87.231,87.203,11.4673748]
[1771081860266,11.46368305,87.232,87.2,0.2]
[1771081860267,0.60799231,87.229,87.2,0.2]
[1771081861466,0.60799231,87.229,87.2,11.66781392]
[1771081861646,0.60799231,87.229,87.2,0.2]
[1771081862054,0.60366418,87.227,87.2,0.2]
[1771081862260,11.46420874,87.228,87.2,0.2]
[1771081862261,0.60366418,87.219,87.2,0.2]
[1771081863142,0.60366418,87.219,87.19,0.2]
[1771081863763,0.60366418,87.219,87.178,7.55522274]
[1771081863955,0.60366418,87.209,87.178,7.55522274]
[1771081864148,2.94212042,87.21,87.178,7.55522274]
[1771081864149,0.60366418,87.207,87.178,7.55522274]
[1771081864953,0.60366418,87.199,87.178,7.55522274]
[1771081866266,0.60366418,87.197,87.178,7.55522274]
[1771081867666,45.830567,87.278,87.178,7.55522274]
[1771081867667,0.60366418,87.229,87.191,0.30022266]
[1771081867853,0.60366418,87.229,87.201,0.29738441]
[1771081868371,0.60366418,87.229,87.202,11.76501129]
[1771081868573,0.60366418,87.235,87.21,2.94212042]
[1771081868765,0.60366418,87.235,87.21,3.23669918]
[1771081868970,0.60366418,87.235,87.211,0.29457876]
[1771081870873,0.60366418,87.233,87.209,11.46658596]
[1771081871174,0.60366418,87.233,87.204,11.75642711]
[1771081871375,0.60366418,87.233,87.204,11.46736336]
[1771081871675,0.60366418,87.233,87.197,11.75729738]
[1771081871859,0.60366418,87.233,87.198,0.28635367]
[1771081873970,31.59884594,87.24,87.2,2.94212042]
[1771081873971,0.60366418,87.231,87.2,2.94212042]
[1771081875556,0.60366418,87.229,87.2,2.94212042]
[1771081875756,0.60366418,87.229,87.19,2.94212042]
[1771081876980,0.60366418,87.209,87.177,61.9]
[1771081877161,0.60366418,87.209,87.175,11.47116599]
[1771081877356,0.60366418,87.209,87.175,11.74442908]
[1771081877763,0.60366418,87.207,87.176,0.27326309]
[1771081878158,11.4668379,87.208,87.17,3.14212042]
[1771081878159,0.60366418,87.199,87.17,0.2]
[1771081878362,40.13393266,87.208,87.159,0.27073449]
[1771081878363,0.60366418,87.189,87.159,0.27073449]
[1771081878678,0.60366418,87.179,87.15,0.2]
[1771081878890,0.60366418,87.169,87.14,0.2]
[1771081879080,0.60366418,87.149,87.13,0.2]
[1771081879261,0.60366418,87.139,87.109,0.46823493]
[1771081879664,0.60366418,87.139,87.102,0.46823493]
[1771081879963,0.60366418,87.137,87.102,0.46823493]
[1771081880159,11.47545319,87.143,87.113,11.47921129]
[1771081880364,0.60366418,87.142,87.113,11.47921129]
[1771081881583,0.60366418,87.139,87.111,0.46576409]
[1771081881763,0.60366418,87.139,87.104,0.46332163]
[1771081881959,0.60366418,87.139,87.107,11.48008877]
[1771081882164,0.60366418,87.139,87.111,11.4795349]
[1771081882561,0.60366418,87.148,87.118,0.46090722]
[1771081882775,0.60366418,87.148,87.11,2.95258972]
[1771081882776,0.60366418,87.147,87.11,2.95258972]
[1771081883190,0.60366418,87.147,87.116,11.47885409]
[1771081883488,0.60366418,87.147,87.11,2.95258972]
[1771081883489,0.60366418,87.147,87.119,0.45852054]
[1771081883867,0.60366418,87.147,87.12,11.47842056]
[1771081884068,0.60366418,87.146,87.119,0.45852054]
[1771081884768,0.60366418,87.146,87.114,11.47916529]
[1771081885264,0.60366418,87.139,87.113,0.45382911]
[1771081886065,0.60366418,87.137,87.105,62.35152373]
[1771081886270,0.60366418,87.137,87.105,0.45152373]
[1771081886588,11.47528793,87.144,87.118,0.45152373]
[1771081887172,12.07895211,87.144,87.118,0.45152373]
[1771081888208,0.60366418,87.143,87.118,0.45152373]
[1771081888889,0.60366418,87.139,87.113,11.47926475]
[1771081889192,0.60366418,87.139,87.111,0.44476526]
[1771081889382,0.60366418,87.139,87.112,11.47940067]
[1771081889591,0.60366418,87.139,87.116,11.47891764]
[1771081889777,0.60366418,87.146,87.119,0.44256399]
[1771081890578,56.58,87.149,87.121,0.44256399]
[1771081890886,11.47381102,87.155,87.123,0.440388]
[1771081891094,12.0774752,87.155,87.123,0.440388]
[1771081891270,11.47381102,87.155,87.123,0.440388]
[1771081891477,0.56241718,87.149,87.123,0.440388]
[1771081891877,0.56241718,87.149,87.123,0.43611072]
[1771081893278,56.62,87.167,87.101,7.64821132]
[1771081893279,0.56241718,87.165,87.131,0.43400885]
[1771081893500,0.56241718,87.179,87.15,2.95258972]
[1771081893792,0.56241718,87.179,87.148,0.43400885]
[1771081895092,0.56241718,87.179,87.15,2.95258972]
[1771081895474,0.56241718,87.179,87.152,0.42987727]
[1771081895779,0.3994542,87.182,87.161,0.42987727]
[1771081896379,0.3994542,87.182,87.151,40.16018174]
[1771081896380,0.3994542,87.182,87.17,2.95258972]
[1771081896901,0.3994542,87.182,87.16,2.95258972]
[1771081897290,0.3994542,87.182,87.161,0.42584005]
[1771081897490,0.3994542,87.182,87.161,11.89884522]
[1771081897697,0.3994542,87.182,87.161,11.47300517]
[1771081897891,0.56241718,87.18,87.154,0.42584005]
[1771081898099,0.56241718,87.18,87.14,2.95258972]
[1771081898100,0.56241718,87.179,87.14,2.95258972]
[1771081898798,0.56241718,87.179,87.137,11.47613343]
[1771081898996,0.56241718,87.179,87.141,0.42189504]
[1771081899993,0.56241718,87.177,87.143,0.41995646]
[1771081902284,11.47104707,87.176,87.144,11.47525934]
[1771081902595,11.47104707,87.176,87.145,0.41427328]
[1771081902596,0.52426452,87.175,87.145,0.41427328]
[1771081902903,0.52426452,87.175,87.144,11.47525934]
[1771081903098,0.52426452,87.175,87.14,2.95258972]
[1771081903099,0.52426452,87.169,87.139,11.47582244]
[1771081903302,0.52426452,87.169,87.13,32.05774001]
[1771081903303,0.52426452,87.169,87.133,11.47666459]
[1771081903705,0.52426452,87.169,87.13,3.36501196]
[1771081903706,0.52426452,87.169,87.13,0.41242224]
[1771081903883,0.52426452,87.159,87.123,0.41059246]
[1771081904501,0.52426452,87.157,87.124,11.47789357]
[1771081904706,0.52426452,87.157,87.125,0.41059246]
[1771081906307,0.52426452,87.157,87.131,0.40699571]
[1771081907111,0.52426452,87.157,87.132,11.88206799]
[1771081907806,11.47367937,87.156,87.132,11.88206799]
[1771081908407,11.99794389,87.156,87.132,11.88206799]
[1771081908908,11.99794389,87.156,87.127,11.47749737]
[1771081908909,0.52426452,87.155,87.127,11.47749737]
[1771081909211,0.52426452,87.155,87.12,14.43097132]
[1771081911210,0.52426452,87.153,87.12,14.43097132]
[1771081913213,0.52426452,87.151,87.12,11.4783816]
[1771081915001,56.58,87.173,87.121,0.39180023]
[1771081915002,11.99796466,87.156,87.121,0.39180023]
[1771081915202,0.52426452,87.155,87.121,0.39180023]
[1771081916910,0.52426452,87.155,87.122,11.47815706]
[1771081917217,0.52426452,87.155,87.123,0.38863269]
[1771081917792,0.52426452,87.153,87.123,0.38863269]
[1771081918813,0.52426452,87.166,87.131,0.3855375]
[1771081919814,0.52426452,87.164,87.133,0.38401652]
[1771081921312,0.54703077,87.18,87.141,0.38102676]
[1771081921516,0.54703077,87.179,87.151,0.38102676]
[1771081921694,0.54703077,87.179,87.141,0.38102676]
[1771081922520,56.5,87.195,87.116,5.36086188]
[1771081922521,0.54703077,87.2,87.171,0.37955759]
[1771081922715,0.94648497,87.182,87.17,2.95258972]
[1771081922896,0.54703077,87.181,87.155,0.37810529]
[1771081923093,0.54703077,87.181,87.15,2.95258972]
[1771081923094,0.54703077,87.18,87.15,2.95258972]
[1771081923723,0.54703077,87.179,87.142,11.853628]
[1771081924021,0.54703077,87.179,87.142,11.47552271]
[1771081924611,0.54703077,87.177,87.143,0.37666967]
[1771081924815,0.54703077,87.177,87.151,0.37525055]
[1771081925514,0.3994542,87.182,87.161,0.37525055]
[1771081926724,0.94648497,87.182,87.161,0.37525055]
[1771081928821,0.54703077,87.18,87.15,2.95258972]
[1771081930500,0.54703077,87.178,87.142,61.9]
[1771081931525,0.54703077,87.176,87.142,61.9]
[1771081931828,0.54703077,87.176,87.151,0.36707161]
[1771081932721,0.3994542,87.182,87.16,2.95258972]
[1771081933246,0.54703077,87.18,87.151,0.36446887]
[1771081933804,0.54703077,87.197,87.161,0.36318989]
[1771081934003,51.64,87.276,87.152,40.15972094]
[1771081934004,0.54703077,87.208,87.19,2.95258972]
[1771081936612,0.54703077,87.215,87.191,11.46907364]
[1771081936818,0.54703077,87.228,87.2,2.95258972]
[1771081937338,0.54703077,87.228,87.192,0.35944039]
[1771081937527,0.54703077,87.209,87.17,2.95258972]
[1771081937733,40.12427059,87.229,87.163,11.47275793]
[1771081937734,0.54703077,87.199,87.163,11.47275793]
[1771081937928,0.54703077,87.199,87.17,2.95258972]
[1771081938133,0.54703077,87.199,87.171,0.35821916]
[1771081938838,0.54703077,87.225,87.181,0.35821916]
[1771081939014,0.54703077,87.223,87.181,0.35821916]
[1771081939219,0.54703077,87.219,87.181,0.35821916]
[1771081940918,0.54703077,87.217,87.183,0.35463898]
[1771081941128,0.54703077,87.217,87.19,2.95258972]
[1771081941520,0.54703077,87.217,87.189,0.35463898]
[1771081941736,0.54703077,87.217,87.181,11.47038919]
[1771081941928,0.54703077,87.217,87.182,0.3534729]
[1771081942840,0.54703077,87.215,87.182,0.3534729]
[1771081943020,0.54703077,87.215,87.191,0.35232021]
[1771081943219,0.54703077,87.215,87.19,2.9475792]
[1771081944644,0.54703077,87.215,87.19,14.41666446]
[1771081946741,0.54703077,87.215,87.186,0.34894097]
[1771081947138,0.54703077,87.213,87.186,0.34894097]
[1771081947344,0.54703077,87.209,87.18,11.47043376]
[1771081947530,0.54703077,87.209,87.181,0.34784034]
[1771081949146,0.54703077,87.229,87.191,0.34567684]
[1771081949344,0.54703077,87.228,87.191,0.34567684]
[1771081949642,0.54703077,87.228,87.183,0.34567684]
[1771081950646,0.54703077,87.226,87.185,0.3446137]
[1771081951851,0.49657731,87.219,87.185,0.3446137]
[1771081952730,11.46552317,87.218,87.186,11.46973137]
[1771081952926,0.49657731,87.217,87.186,11.46973137]
[1771081956937,0.49657731,87.215,87.183,0.33653657]
[1771081959434,0.49657731,87.215,87.181,11.47038919]
[1771081959435,11.46604902,87.214,87.181,11.47038919]
[1771081959635,0.49657731,87.213,87.181,11.47038919]
[1771081959952,0.49657731,87.213,87.181,11.80408417]
[1771081960151,0.49657731,87.213,87.182,0.33369498]
[1771081963859,0.49657731,87.213,87.183,11.47012605]
[1771081964058,0.49657731,87.213,87.183,11.79929852]
[1771081964241,0.48931256,87.211,87.183,11.47012605]
[1771081965040,0.48931256,87.211,87.177,11.80001404]
[1771081965552,0.48931256,87.209,87.177,11.47084157]
[1771081965950,0.48931256,87.207,87.173,11.47144184]
[1771081967045,2.9475792,87.21,87.173,11.79802357]
[1771081967046,0.48931256,87.205,87.173,11.79802357]
[1771081967247,0.48931256,87.205,87.174,0.32658173]
[1771081968757,0.48931256,87.205,87.18,2.9475792]
[1771081968958,11.46710088,87.206,87.181,0.32490379]
[1771081969676,0.48931256,87.216,87.191,0.32490379]
[1771081970343,0.48931256,87.216,87.183,0.32407924]
[1771081971243,0.48931256,87.214,87.185,0.32326417]
[1771081973964,0.48931256,87.214,87.19,2.9475792]
[1771081975564,0.48931256,87.214,87.19,14.41666305]
[1771081977268,0.48931256,87.212,87.19,11.46908385]
[1771081977771,0.48931256,87.212,87.175,61.9]
[1771081977772,0.48931256,87.209,87.175,61.9]
[1771081977950,0.48931256,87.209,87.175,73.37116763]
[1771081979472,0.48931256,87.207,87.175,73.37116763]
[1771081980864,11.46603884,87.215,87.181,0.31561099]
[1771081981054,0.48931256,87.214,87.175,61.9]
[1771081981254,0.51685798,87.189,87.164,0.31489318]
[1771081981468,0.51685798,87.187,87.164,0.31489318]
[1771081981864,0.51685798,87.201,87.166,0.31489318]
[1771081982051,0.51685798,87.199,87.166,0.31489318]
[1771081982255,0.51685798,87.189,87.159,0.31418362]
[1771081983655,0.51685798,87.187,87.159,0.31418362]
[1771081985089,11.22627601,87.188,87.159,0.31418362]
[1771081985263,11.22627601,87.188,87.16,0.51153808]
[1771081985988,2.9475792,87.19,87.16,0.51153808]
[1771081986287,2.9475792,87.19,87.15,2.9475792]
[1771081986288,2.9475792,87.19,87.151,0.51153808]
[1771081987073,0.51685798,87.189,87.151,0.51153808]
[1771081989684,0.51685798,87.187,87.151,0.51153808]
[1771081989886,0.51685798,87.187,87.152,0.51153808]
[1771081992890,11.46973137,87.186,87.152,0.51153808]
[1771081993078,0.51685798,87.185,87.152,0.51153808]
[1771081993590,0.51685798,87.198,87.171,0.51153808]
[1771081993893,11.46802142,87.199,87.171,0.51153808]
[1771081994480,0.51685798,87.204,87.171,0.51153808]
[1771081995390,0.51685798,87.204,87.173,0.51153808]
[1771081995690,0.51685798,87.202,87.173,0.51153808]
[1771081997391,11.46569853,87.217,87.191,0.51153808]
[1771081997689,0.51685798,87.216,87.181,0.51153808]
[1771082001790,0.51685798,87.214,87.181,0.51153808]
[1771082001983,0.51685798,87.214,87.183,0.51153808]
[1771082002294,11.98277554,87.215,87.183,0.51153808]
[1771082002485,0.51685798,87.214,87.183,0.51153808]
[1771082005904,11.4661805,87.213,87.184,11.46999449]
[1771082006105,0.51685798,87.212,87.173,0.51153808]
[1771082006400,0.51685798,87.209,87.173,0.51153808]
[1771082006700,0.51685798,87.209,87.165,16.08978721]
[1771082006701,0.51685798,87.209,87.181,0.51153808]
[1771082007300,40.13163175,87.213,87.181,0.51153808]
[1771082007301,0.51685798,87.207,87.181,0.51153808]
[1771082008684,0.51685798,87.205,87.181,0.51153808]
[1771082011399,0.50549712,87.203,87.181,0.51153808]
[1771082014000,0.50549712,87.201,87.171,0.49790388]
[1771082014783,0.50549712,87.225,87.191,0.49790388]
[1771082016395,0.50549712,87.223,87.191,0.49790388]
[1771082016705,11.46343931,87.234,87.201,0.49790388]
[1771082017008,11.46343931,87.234,87.211,0.49790388]
[1771082017505,11.96893643,87.234,87.211,0.49790388]
[1771082019401,0.50549712,87.229,87.207,11.4669343]
[1771082019701,0.50549712,87.229,87.202,11.46757692]
[1771082020505,0.50549712,87.229,87.201,0.49790388]
[1771082020801,0.50549712,87.229,87.195,0.51822898]
[1771082021406,11.46420874,87.228,87.196,11.46841598]
[1771082021711,11.46420874,87.228,87.196,11.98664496]
[1771082021712,0.49033492,87.227,87.196,11.98664496]
[1771082021914,0.49033492,87.227,87.197,0.51822898]
[1771082022607,0.49033492,87.225,87.197,0.51822898]
[1771082023334,0.49033492,87.225,87.188,0.51822898]
[1771082023608,40.1256506,87.226,87.188,0.51822898]
[1771082023609,0.49033492,87.219,87.188,0.51822898]
[1771082024189,0.49033492,87.219,87.183,11.47011532]
[1771082024396,0.49033492,87.219,87.184,0.51822898]
[1771082024605,0.49033492,87.217,87.185,11.98809191]
[1771082025216,0.49033492,87.217,87.186,0.51822898]
[1771082028112,0.49033492,87.215,87.186,0.51822898]
[1771082028520,0.49033492,87.215,87.186,11.98795718]
[1771082029021,0.49033492,87.215,87.178,0.51822898]
[1771082029311,40.13025132,87.216,87.178,0.51822898]
[1771082029312,0.49033492,87.209,87.178,0.51822898]
[1771082030830,0.49033492,87.207,87.173,61.9]
[1771082031020,0.49033492,87.199,87.173,0.51822898]
[1771082034214,11.46815293,87.198,87.173,0.51822898]
[1771082034418,0.49033492,87.197,87.173,0.51822898]
[1771082036432,11.46841598,87.196,87.173,0.51822898]
[1771082037407,11.9587509,87.196,87.173,0.51822898]
[1771082037606,0.49033492,87.195,87.173,0.51822898]
[1771082038427,0.49033492,87.193,87.173,0.51822898]
[1771082038730,0.49033492,87.179,87.154,0.51822898]
[1771082038933,0.49033492,87.198,87.161,0.51822898]
[1771082041032,11.95861937,87.197,87.163,0.51822898]
[1771082041222,0.49033492,87.196,87.163,0.51822898]
[1771082042223,11.46828445,87.197,87.163,0.51822898]
[1771082042423,0.49918718,87.196,87.163,0.51822898]
[1771082044822,0.49918718,87.196,87.164,11.47262631]
[1771082045041,11.4685475,87.195,87.165,0.48455409]
[1771082047644,2.94730132,87.2,87.167,0.48455409]
[1771082047844,0.49918718,87.214,87.181,0.48455409]
[1771082051128,0.49918718,87.212,87.183,0.48455409]